bitfinex/quotes_SOLUSD_20251009
["timestamp","ask_amount","ask_price","bid_price","bid_amount"]
[1760028775231,3.05199519,219.12,219.08,0.72]
[1760028775429,3.05199519,219.13,219.09,0.72]
[1760028775740,3.05199519,219.13,219.1,11.59647521]
[1760028775941,3.05199519,219.15,219.12,10.87647521]
[1760028776243,3.05199519,219.17,219.12,11.59647521]
[1760028776447,3.05199519,219.16,219.12,11.59647521]
[1760028776738,3.05199519,219.17,219.13,32.94]
[1760028776918,3.05199519,219.16,219.13,32.94]
[1760028777118,3.05199519,219.17,219.13,32.94]
[1760028777335,3.05199519,219.18,219.14,0.72]
[1760028777639,3.05199519,219.19,219.14,0.72]
[1760028777844,3.05199519,219.18,219.15,0.72]
[1760028778151,3.05199519,219.19,219.15,0.72]
[1760028778533,9.08866293,219.19,219.14,10.87647521]
[1760028778847,9.08866293,219.19,219.14,11.59647521]
[1760028778848,6.03666774,219.19,219.14,11.59647521]
[1760028779044,0.71,219.18,219.14,10.87647521]
[1760028779230,13.65092955,219.19,219.14,11.59647521]
[1760028779425,3.05199519,219.19,219.15,0.72]
[1760028779620,20.8,219.19,219.14,15.43964814]
[1760028779832,20.8,219.19,219.14,10.87647521]
[1760028780130,26.83666774,219.15,219.07,27.72]
[1760028780330,6.03666774,219.09,219.07,27.72]
[1760028780529,6.74666774,219.08,219.01,0.1]
[1760028780731,6.03666774,219.06,219.03,10.87647521]
[1760028781122,6.03666774,219.06,219.02,32.92]
[1760028781538,6.74666774,219.06,219.02,32.92]
[1760028782147,0.71,219.05,219.02,32.92]
[1760028782562,6.74666774,219.04,219.01,0.1]
[1760028782723,6.03666774,219.02,219.01,0.1]
[1760028783223,26.83666774,219.03,219.01,0.1]
[1760028783424,6.03666774,219.06,219.01,0.82]
[1760028783623,26.83666774,219.06,219.01,0.82]
[1760028783842,3.06587876,219.05,219.01,0.82]
[1760028784352,3.06587876,219.05,219.01,0.1]
[1760028784521,3.06587876,219.05,219.01,0.82]
[1760028784838,3.06587876,219.05,219.02,0.72]
[1760028785152,6.03666774,219.07,219.02,0.72]
[1760028785344,13.66729856,219.07,219.02,0.72]
[1760028785544,3.06587876,219.08,219.07,80.3]
[1760028785721,4.75624613,219.11,219.07,80.3]
[1760028785922,8.61016647,219.11,219.07,80.3]
[1760028786134,4.04624613,219.08,219.07,80.3]
[1760028786331,4.75624613,219.08,219.07,80.3]
[1760028787352,30.12078876,219.08,219.07,80.3]
[1760028787648,33.18666752,219.08,219.07,80.3]
[1760028789131,29.14042139,219.08,219.07,80.3]
[1760028789359,33.18666752,219.08,219.07,80.3]
[1760028790456,32.47666752,219.08,219.07,80.3]
[1760028790857,3.06587876,219.08,219.07,80.3]
[1760028791042,4.04624613,219.09,219.07,80.3]
[1760028791242,4.75624613,219.08,219.07,80.3]
[1760028791756,4.04624613,219.08,219.07,80.3]
[1760028792261,30.12078876,219.08,219.07,80.3]
[1760028792444,33.18666752,219.08,219.07,80.3]
[1760028793161,23.86587876,219.08,219.07,80.3]
[1760028793463,25.50915721,219.08,219.07,80.3]
[1760028794369,23.86587876,219.08,219.07,80.3]
[1760028795044,28.43042139,219.08,219.07,80.3]
[1760028795453,30.07369984,219.08,219.07,80.3]
[1760028795656,28.43042139,219.08,219.07,80.3]
[1760028796059,23.86587876,219.08,219.07,80.3]
[1760028796368,8.28042139,219.08,219.07,80.3]
[1760028796572,54.25505642,219.08,219.01,0.1]
[1760028796774,20.8,218.99,218.97,0.1]
[1760028796950,37.63096643,218.98,218.97,1e-08]
[1760028797148,20.8,218.95,218.89,0.1]
[1760028797355,1.64327845,218.9,218.89,0.1]
[1760028797869,37.62808741,218.9,218.89,0.1]
[1760028798072,36.63480896,218.9,218.89,0.1]
[1760028798368,42.84638343,218.9,218.89,0.1]
[1760028798683,3.06480896,218.9,218.89,0.1]
[1760028798964,20.8,218.92,218.89,0.1]
[1760028799270,1.64327845,218.9,218.89,0.1]
[1760028799471,3.05807766,218.91,218.89,0.1]
[1760028799655,4.0520835,218.92,218.89,0.1]
[1760028800364,4.0520835,218.91,218.89,0.1]
[1760028800860,4.0520835,218.92,218.89,0.1]
[1760028801063,5.21712461,218.96,218.9,0.71]
[1760028801447,4.0520835,218.94,218.9,32.92]
[1760028801652,7.624714,218.98,218.9,32.92]
[1760028801853,3.05796858,218.99,218.92,10.87647521]
[1760028802159,4.0520835,218.98,218.93,0.71]
[1760028802370,4.0520835,218.98,218.94,0.71]
[1760028802583,4.0520835,218.98,218.95,32.92]
[1760028802877,3.05796858,219.03,218.96,0.71]
[1760028803057,4.0520835,219.01,218.96,0.71]
[1760028803259,24.8520835,219.01,218.97,0.71]
[1760028803463,4.0520835,219.03,218.98,0.71]
[1760028803662,4.0520835,219.05,218.99,0.71]
[1760028803851,20.8,219.06,219.0,32.92]
[1760028804053,4.0520835,219.06,219.01,0.71]
[1760028804272,20.8,219.05,219.01,0.71]
[1760028804476,4.0520835,219.06,219.02,0.71]
[1760028804666,4.0520835,219.05,219.0,10.87647521]
[1760028804861,20.8,219.08,219.01,33.63]
[1760028805174,7.10618231,219.07,219.01,33.63]
[1760028805561,20.8,219.05,219.02,32.92]
[1760028805771,4.0520835,219.09,219.03,0.71]
[1760028806168,4.0520835,219.1,219.03,0.71]
[1760028806473,20.8,219.07,219.03,5.27550831]
[1760028806778,4.0520835,219.04,218.98,10.87647521]
[1760028806978,4.0520835,219.04,218.97,5.27675]
[1760028806979,4.0520835,219.01,218.99,32.92]
[1760028808257,4.0520835,219.02,218.99,32.92]
[1760028808783,4.45562733,219.11,219.01,10.87647521]
[1760028808964,4.0520835,219.09,219.02,0.71]
[1760028809156,4.0520835,219.05,219.0,10.87647521]
[1760028809355,4.0520835,219.05,219.0,11.58647521]
[1760028809556,21.45,219.07,219.01,0.71]
[1760028809879,6.83857838,219.13,219.01,0.71]
[1760028810059,4.0520835,219.07,219.01,0.71]
[1760028810265,0.65,219.08,219.01,4.56600155]
[1760028810470,4.0520835,219.07,219.0,10.87647521]
[1760028810783,4.0520835,219.07,219.01,4.56600155]
[1760028811288,4.0520835,219.07,219.02,0.71]
[1760028811469,20.8,219.13,219.03,10.87647521]
[1760028811781,4.7020835,219.16,219.05,10.87647521]
[1760028811979,20.8,219.13,219.05,11.58647521]
[1760028812185,3.05387726,219.12,219.07,10.87647521]
[1760028812360,4.0520835,219.12,219.07,16.15111076]
[1760028812562,4.0520835,219.13,219.08,0.71]
[1760028812757,4.0520835,219.11,219.09,32.94]
[1760028812983,3.05376604,219.16,219.09,32.94]
[1760028813170,4.0520835,219.15,219.1,0.71]
[1760028813582,7.10584954,219.15,219.1,0.71]
[1760028813885,3.05376604,219.15,219.11,0.71]
[1760028814083,6.43177939,219.18,219.12,0.71]
[1760028814281,2.38234179,219.19,219.12,0.71]
[1760028814282,20.8,219.16,219.12,0.71]
[1760028814584,20.8,219.16,219.1,11.58647521]
[1760028814764,24.8520835,219.16,219.1,11.58647521]
[1760028814964,24.8520835,219.16,219.1,27.56088342]
[1760028815189,0.2,219.23,219.12,10.87647521]
[1760028815190,0.65,219.22,219.12,10.87647521]
[1760028815373,4.0520835,219.2,219.13,0.71]
[1760028815574,4.0520835,219.21,219.14,32.92]
[1760028815780,4.0520835,219.2,219.14,32.92]
[1760028816086,24.8520835,219.15,219.03,33.44]
[1760028816258,4.0520835,219.04,218.97,0.71]
[1760028816463,20.8,219.05,218.98,34.32]
[1760028816765,4.0520835,219.03,218.98,35.03]
[1760028816977,4.0520835,219.01,218.99,0.71]
[1760028817459,20.8,219.04,218.99,0.71]
[1760028817665,4.0520835,219.04,218.99,10.87647521]
[1760028817985,4.0520835,219.03,218.99,11.58647521]
[1760028818186,20.8,219.04,218.99,10.87647521]
[1760028818489,4.0520835,219.04,219.0,5.27621004]
[1760028818859,20.8,219.05,219.01,0.71]
[1760028819065,3.81612773,219.14,219.02,10.87647521]
[1760028819267,4.0520835,219.06,219.03,34.34]
[1760028819460,4.0520835,219.05,219.03,34.34]
[1760028819686,4.0520835,219.06,219.03,35.05]
[1760028819872,4.0520835,219.07,219.03,35.05]
[1760028820190,0.65,219.09,219.03,35.05]
[1760028820372,4.0520835,219.07,219.03,34.34]
[1760028820567,4.0520835,219.07,219.03,38.90540629]
[1760028820976,3.05244455,219.06,219.03,39.61540629]
[1760028821698,3.05244455,219.07,219.03,39.61540629]
[1760028821881,3.05244455,219.06,219.03,39.61540629]
[1760028822080,4.0520835,219.08,219.03,39.61540629]
[1760028822081,3.05244455,219.07,219.03,38.90540629]
[1760028822282,3.05244455,219.07,219.04,0.71]
[1760028822478,3.05244455,219.06,219.03,38.90540629]
[1760028822695,7.10452805,219.06,219.03,38.90540629]
[1760028822988,4.0520835,219.06,219.03,34.34]
[1760028823178,3.05438743,219.05,219.03,35.0]
[1760028823494,7.10647093,219.05,219.03,34.34]
[1760028823699,4.0520835,219.06,219.03,34.34]
[1760028823866,3.05438743,219.05,219.03,34.34]
[1760028824270,0.69,219.09,219.04,0.66]
[1760028824485,4.0520835,219.07,219.03,38.90556352]
[1760028824673,3.05557413,219.06,219.04,0.66]
[1760028824880,20.8,219.09,219.04,0.66]
[1760028825095,7.81761893,219.08,219.03,38.90557038]
[1760028825278,3.05553543,219.07,219.04,0.68]
[1760028825475,3.05553543,219.06,219.05,0.68]
[1760028825896,3.05553543,219.06,219.03,38.90557243]
[1760028826075,3.05553543,219.05,219.03,34.34]
[1760028826274,4.0520835,219.06,219.03,34.34]
[1760028826487,3.05623969,219.05,219.03,34.34]
[1760028826702,4.0520835,219.07,219.03,34.34]
[1760028826994,3.05626063,219.06,219.04,0.68]
[1760028827292,3.0559676,219.08,219.04,0.68]
[1760028827498,3.0559676,219.07,219.05,0.68]
[1760028827698,3.0559676,219.09,219.04,10.87647521]
[1760028827900,3.05548934,219.14,219.04,10.87647521]
[1760028828195,4.0520835,219.14,219.05,0.68]
[1760028828401,4.0520835,219.16,219.05,0.68]
[1760028828706,3.05407265,219.15,219.07,10.87647521]
[1760028828904,3.05407265,219.14,219.09,10.87647521]
[1760028829075,0.71,219.18,219.1,0.68]
[1760028829278,7.1058458,219.17,219.1,0.68]
[1760028829483,7.1058458,219.16,219.1,0.68]
[1760028829697,3.0537623,219.15,219.11,34.34]
[1760028829881,3.0537623,219.14,219.12,0.68]
[1760028830084,23.8537623,219.17,219.11,34.34]
[1760028830301,3.0537623,219.16,219.13,10.87647521]
[1760028830485,3.0537623,219.15,219.13,10.87647521]
[1760028830690,4.0520835,219.19,219.13,5.24336769]
[1760028830905,3.0537623,219.18,219.14,34.3]
[1760028831082,3.0537623,219.17,219.14,34.3]
[1760028831399,7.1058458,219.18,219.14,34.3]
[1760028831593,3.0537623,219.17,219.14,34.3]
[1760028831800,3.0537623,219.16,219.14,34.3]
[1760028831979,3.0537623,219.17,219.14,34.98]
[1760028832178,3.0537623,219.16,219.15,0.68]
[1760028832392,7.1058458,219.2,219.15,0.68]
[1760028832698,3.0537623,219.19,219.15,4.56308464]
[1760028832875,3.0537623,219.18,219.15,4.56308464]
[1760028833078,3.0537623,219.17,219.15,4.56308464]
[1760028833403,7.1058458,219.19,219.15,4.56308464]
[1760028833590,3.0537623,219.18,219.15,4.56308464]
[1760028833789,3.0537623,219.18,219.16,10.87647521]
[1760028834102,3.81612773,219.22,219.17,0.68]
[1760028834103,3.0537623,219.21,219.17,0.68]
[1760028834300,3.0537623,219.2,219.18,34.24]
[1760028834604,3.0537623,219.21,219.18,34.24]
[1760028834777,3.0537623,219.22,219.2,4.56204379]
[1760028835698,3.0537623,219.22,219.21,0.68]
[1760028836286,3.0537623,219.22,219.2,4.56204379]
[1760028836882,3.0537623,219.22,219.19,15.43872713]
[1760028837091,3.0537623,219.22,219.19,16.11872713]
[1760028837293,3.0537623,219.22,219.19,11.55647521]
[1760028837508,3.0537623,219.22,219.19,10.87647521]
[1760028838509,3.0537623,219.22,219.19,11.55647521]
[1760028838808,3.0537623,219.22,219.2,4.56200734]
[1760028839790,3.0537623,219.22,219.21,34.18]
[1760028840290,7.1058458,219.22,219.21,34.18]
[1760028840481,12.37747338,219.22,219.13,15.43997632]
[1760028840683,4.0520835,219.16,219.14,34.14]
[1760028840912,4.56162758,219.22,219.14,38.70312445]
[1760028840913,4.0520835,219.17,219.14,38.70312445]
[1760028841286,3.0537623,219.19,219.14,34.14]
[1760028841504,3.0537623,219.19,219.15,10.87647521]
[1760028841725,0.2,219.23,219.15,31.67647521]
[1760028841726,3.0537623,219.22,219.15,31.67647521]
[1760028841937,0.2,219.23,219.17,10.87647521]
[1760028842218,3.2537623,219.23,219.19,10.87647521]
[1760028842420,3.2537623,219.23,219.21,10.87647521]
[1760028842421,0.2,219.23,219.21,10.87647521]
[1760028842633,0.2,219.23,219.22,45.67647521]
[1760028842931,0.2,219.23,219.22,50.23810279]
[1760028843229,3.2537623,219.23,219.22,50.23810279]
[1760028844330,3.2537623,219.23,219.22,44.99647521]
[1760028844519,3.2537623,219.23,219.22,50.23810279]
[1760028844719,3.2537623,219.23,219.22,34.08]
[1760028846130,3.2537623,219.23,219.11,0.68]
[1760028846131,4.56162758,219.22,219.11,0.68]
[1760028846306,3.81612773,219.18,219.12,34.06]
[1760028846500,4.0520835,219.13,219.05,0.68]
[1760028846715,4.0520835,219.18,219.06,34.06]
[1760028846716,4.0520835,219.1,219.06,34.06]
[1760028846935,3.0537623,219.09,219.06,38.62494518]
[1760028847117,0.71,219.13,219.07,0.68]
[1760028847430,6.03635116,219.11,219.07,0.68]
[1760028847613,3.04868667,219.1,219.07,10.87647521]
[1760028847931,3.04868667,219.09,219.08,34.04]
[1760028848118,9.08503783,219.09,219.05,10.87647521]
[1760028848318,3.04868667,219.08,219.06,34.02]
[1760028848503,3.04868667,219.07,219.06,34.02]
[1760028849330,3.04868667,219.07,219.04,40.84536773]
[1760028849331,3.04868667,219.07,219.04,4.56536773]
[1760028849512,22.81052423,219.2,218.86,0.1]
[1760028849513,6.03635116,219.05,218.98,15.44310229]
[1760028849714,3.04868667,219.04,219.0,10.87647521]
[1760028849913,3.81612773,219.1,219.02,10.87647521]
[1760028850126,3.81612773,219.1,219.01,0.68]
[1760028850127,3.05098306,219.09,219.04,10.87647521]
[1760028850302,3.05098306,219.08,219.05,0.68]
[1760028850507,3.05098306,219.07,219.06,34.0]
[1760028851313,3.05098306,219.07,219.06,49.44143458]
[1760028852722,3.05098306,219.07,219.06,44.87647521]
[1760028853130,3.75098306,219.07,219.03,15.44204694]
[1760028853430,3.75098306,219.06,219.04,33.98]
[1760028853626,3.05098306,219.05,219.04,33.98]
[1760028853833,9.08733422,219.05,219.0,10.87647521]
[1760028854012,20.8,218.98,218.93,34.3]
[1760028854215,23.8549174,218.97,218.93,34.3]
[1760028854421,6.03635116,218.95,218.93,34.3]
[1760028854736,3.0549174,218.94,218.93,34.3]
[1760028859458,20.8,218.91,218.89,0.1]
[1760028859648,3.0549174,218.9,218.89,0.1]
[1760028860035,3.0549174,218.92,218.89,4.66848768]
[1760028860241,3.0549174,218.91,218.9,34.38]
[1760028860541,3.0549174,218.92,218.9,34.38]
[1760028860734,3.0549174,218.93,218.9,34.38]
[1760028860920,3.0549174,218.92,218.9,34.38]
[1760028861118,3.0549174,218.93,218.9,34.38]
[1760028861739,3.0549174,218.94,218.9,34.38]
[1760028862044,9.09126856,218.94,218.9,34.38]
[1760028862237,0.7,218.93,218.9,34.38]
[1760028862868,0.7,218.92,218.9,34.38]
[1760028863363,6.73635116,218.91,218.9,34.38]
[1760028863658,6.03635116,218.92,218.9,34.38]
[1760028863863,9.09126856,218.92,218.9,34.38]
[1760028864067,0.7,218.91,218.9,34.38]
[1760028864375,6.73635116,218.91,218.9,34.38]
[1760028865051,3.7549174,218.91,218.89,0.1]
[1760028865369,9.09126856,218.9,218.89,0.1]
[1760028865871,9.79126856,218.9,218.89,0.1]
[1760028866546,3.7549174,218.9,218.89,0.1]
[1760028866750,9.79126856,218.9,218.89,0.1]
[1760028867850,6.73635116,218.9,218.89,0.1]
[1760028868361,9.79126856,218.9,218.89,0.1]
[1760028868853,14.35956458,218.9,218.89,0.1]
[1760028869868,3.7549174,218.9,218.89,0.1]
[1760028870040,8.32321342,218.9,218.89,0.1]
[1760028870240,14.35956458,218.9,218.89,0.1]
[1760028871766,9.79126856,218.9,218.89,0.1]
[1760028871955,14.35956458,218.9,218.89,0.1]
[1760028872571,9.79126856,218.9,218.89,0.1]
[1760028872870,14.35956458,218.9,218.89,0.1]
[1760028873072,18.17569231,218.9,218.89,0.1]
[1760028873279,20.8,218.87,218.86,0.1]
[1760028873461,29.89126856,218.87,218.86,0.1]
[1760028873657,34.36769856,218.87,218.86,0.1]
[1760028873970,38.93662075,218.87,218.86,0.1]
[1760028874156,41.32226553,218.87,218.86,0.1]
[1760028874765,41.32226553,218.87,218.85,0.1]
[1760028874766,16.91282637,218.86,218.85,0.1]
[1760028874942,54.16774377,218.86,218.78,0.1]
[1760028875146,9.80904684,218.81,218.78,0.1]
[1760028875480,47.06396424,218.81,218.78,0.1]
[1760028875774,47.76396424,218.81,218.78,0.1]
[1760028875976,59.4379188,218.81,218.78,0.1]
[1760028876966,3.7549174,218.81,218.78,0.1]
[1760028877274,14.36144359,218.81,218.78,0.1]
[1760028878561,18.12597394,218.81,218.78,0.1]
[1760028879163,48.52144359,218.81,218.78,0.1]
[1760028879973,45.46652619,218.81,218.78,0.1]
[1760028880170,3.01054848,218.81,218.78,0.1]
[1760028880376,33.60992244,218.81,218.78,0.1]
[1760028880570,12.80992244,218.81,218.78,0.1]
[1760028880968,9.04689964,218.81,218.78,0.1]
[1760028881279,12.80992244,218.81,218.78,0.1]
[1760028881773,9.04689964,218.81,218.78,0.1]
[1760028882272,17.38009747,218.81,218.78,0.1]
[1760028882477,18.08009747,218.81,218.78,0.1]
[1760028882655,14.31707467,218.81,218.78,0.1]
[1760028883174,53.44733558,218.81,218.78,0.1]
[1760028883471,25.3705928,218.79,218.78,0.1]
[1760028883674,34.41749244,218.79,218.78,0.1]
[1760028884065,35.12749244,218.79,218.78,0.1]
[1760028885374,40.14679121,218.79,218.78,0.1]
[1760028885548,29.84689964,218.79,218.78,0.1]
[1760028886390,39.43679121,218.79,218.78,0.1]
[1760028886595,35.07749244,218.79,218.77,0.1]
[1760028886799,37.05054848,218.78,218.77,0.1]
[1760028887292,37.71054848,218.78,218.77,0.1]
[1760028887509,63.08135019,218.78,218.77,0.1]
[1760028887795,73.47936283,218.78,218.77,0.1]
[1760028888093,69.11770135,218.78,218.77,0.1]
[1760028888384,69.11770135,218.78,218.71,0.66]
[1760028888563,9.8064895,218.72,218.71,0.66]
[1760028888767,12.81703798,218.72,218.71,0.66]
[1760028889265,6.78068682,218.72,218.71,0.66]
[1760028889786,6.78427483,218.72,218.71,0.66]
[1760028889964,3.01054848,218.72,218.71,0.66]
[1760028890496,6.78427483,218.72,218.71,0.66]
[1760028890664,3.01054848,218.72,218.71,5.23226464]
[1760028890866,3.77372635,218.77,218.72,10.87647521]
[1760028891063,3.77372635,218.78,218.72,10.87647521]
[1760028891388,3.77372635,218.77,218.72,10.87647521]
[1760028891691,35.53994053,218.83,218.72,10.87647521]
[1760028891692,14.73994053,218.83,218.74,10.87647521]
[1760028892083,14.73994053,218.83,218.73,38.86069582]
[1760028892084,6.03635116,218.9,218.78,10.87647521]
[1760028892290,6.03635116,218.88,218.78,10.87647521]
[1760028892486,6.69635116,218.88,218.78,10.87647521]
[1760028893190,0.66,218.88,218.78,10.87647521]
[1760028893383,0.66,218.88,218.79,4.5705928]
[1760028893384,6.03635116,218.87,218.79,4.5705928]
[1760028893696,6.03635116,218.88,218.79,15.99707481]
[1760028893905,6.03635116,218.8,218.68,4.57289189]
[1760028894074,6.03635116,218.75,218.67,0.1]
[1760028894266,6.03635116,218.71,218.67,0.1]
[1760028894573,0.66,218.75,218.67,4.67307023]
[1760028894784,6.03635116,218.72,218.67,0.1]
[1760028895073,6.03635116,218.7,218.67,0.1]
[1760028897898,20.8,218.73,218.67,0.1]
[1760028898079,6.03635116,218.69,218.67,0.1]
[1760028899182,6.69635116,218.69,218.67,0.1]
[1760028899510,6.03635116,218.69,218.67,0.1]
[1760028899682,0.66,218.68,218.67,0.1]
[1760028900381,6.03635116,218.6,218.58,0.1]
[1760028900899,0.66,218.59,218.58,0.1]
[1760028901985,20.8,218.61,218.58,0.1]
[1760028902314,6.03635116,218.6,218.58,0.1]
[1760028902516,0.66,218.61,218.58,0.1]
[1760028902676,6.03635116,218.6,218.58,0.1]
[1760028903022,3.04154129,218.59,218.58,0.1]
[1760028903311,3.70154129,218.59,218.58,0.1]
[1760028905009,3.04154129,218.59,218.58,0.1]
[1760028906818,3.70154129,218.59,218.58,0.1]
[1760028907098,8.27631598,218.59,218.58,0.1]
[1760028907597,27.90814317,218.59,218.58,0.1]
[1760028907796,7.10814317,218.59,218.58,0.1]
[1760028908095,4.06660188,218.59,218.58,0.1]
[1760028908298,12.34291786,218.59,218.58,0.1]
[1760028908901,20.8,218.57,218.47,33.85]
[1760028909084,4.06660188,218.52,218.47,33.85]
[1760028909281,4.06660188,218.5,218.46,4.67746857]
[1760028909481,3.70154129,218.54,218.46,4.88746857]
[1760028909698,4.06660188,218.5,218.46,4.67746857]
[1760028909881,4.06660188,218.52,218.47,0.21]
[1760028910208,4.06660188,218.5,218.46,4.67746857]
[1760028910783,4.06660188,218.5,218.46,0.1]
[1760028911183,4.06660188,218.5,218.46,4.67742876]
[1760028911384,4.06660188,218.5,218.46,0.1]
[1760028911899,0.66,218.52,218.46,0.1]
[1760028911900,4.06660188,218.49,218.46,0.1]
[1760028912112,4.06660188,218.49,218.46,4.67745474]
[1760028912601,4.06660188,218.53,218.47,0.21]
[1760028912807,4.06660188,218.53,218.48,4.57707799]
[1760028913111,4.75660188,218.53,218.48,4.57707799]
[1760028913278,4.06660188,218.51,218.46,0.1]
[1760028913616,4.06660188,218.51,218.47,33.7]
[1760028913983,0.69,218.57,218.48,11.08647521]
[1760028914307,4.06660188,218.54,218.48,11.08647521]
[1760028915092,4.06660188,218.54,218.49,4.5768685]
[1760028915280,0.69,218.6,218.5,11.08647521]
[1760028915485,0.69,218.63,218.51,11.08647521]
[1760028915804,4.06660188,218.62,218.55,10.87647521]
[1760028915982,4.06660188,218.62,218.56,33.68]
[1760028916190,4.06660188,218.6,218.56,33.68]
[1760028916614,4.06660188,218.61,218.56,33.68]
[1760028916812,4.06660188,218.61,218.55,10.87647521]
[1760028916987,4.06660188,218.62,218.57,33.68]
[1760028917190,21.49,218.66,218.59,4.57477469]
[1760028917389,4.06660188,218.63,218.59,4.57477469]
[1760028917616,4.75660188,218.63,218.59,4.57477469]
[1760028917907,4.06660188,218.63,218.59,4.57477469]
[1760028918690,4.06660188,218.63,218.59,4.78477469]
[1760028918890,4.06660188,218.63,218.58,10.87647521]
[1760028919196,4.06660188,218.63,218.59,4.57477469]
[1760028919792,4.06660188,218.65,218.6,0.21]
[1760028920025,4.06660188,218.65,218.59,4.57477469]
[1760028920228,4.75660188,218.65,218.58,15.45145783]
[1760028920605,4.75660188,218.65,218.58,10.87647521]
[1760028920914,20.8,218.69,218.58,33.62]
[1760028920915,20.8,218.63,218.58,33.62]
[1760028921111,4.06660188,218.6,218.58,33.62]
[1760028921291,4.06660188,218.61,218.58,33.62]
[1760028921491,0.69,218.65,218.58,38.19495254]
[1760028921714,4.06660188,218.63,218.58,38.19495254]
[1760028922012,0.69,218.62,218.58,38.19495254]
[1760028922395,4.06660188,218.61,218.58,38.19495254]
[1760028923703,4.06660188,218.61,218.58,33.62]
[1760028923912,4.75660188,218.61,218.58,33.62]
[1760028924104,4.75660188,218.61,218.57,4.57516097]
[1760028924105,4.75660188,218.61,218.59,33.56]
[1760028924492,4.75660188,218.6,218.48,0.21]
[1760028924690,4.06660188,218.55,218.5,10.87647521]
[1760028924899,4.06660188,218.53,218.49,4.57670675]
[1760028925096,4.75660188,218.53,218.5,33.54]
[1760028925399,4.75660188,218.53,218.46,0.1]
[1760028925400,4.06660188,218.51,218.47,4.57708046]
[1760028925715,0.69,218.56,218.48,33.54]
[1760028925922,4.06660188,218.53,218.48,33.54]
[1760028926123,4.75660188,218.53,218.49,33.54]
[1760028926291,0.69,218.56,218.49,33.54]
[1760028926618,4.06660188,218.53,218.48,33.54]
[1760028926926,4.06660188,218.55,218.49,4.7868685]
[1760028927098,4.06660188,218.55,218.49,4.5768685]
[1760028928207,0.69,218.56,218.49,16.01903976]
[1760028928407,4.06660188,218.54,218.49,16.01903976]
[1760028929502,4.75660188,218.54,218.49,4.5768685]
[1760028929709,4.06660188,218.54,218.49,4.5768685]
[1760028930005,4.75660188,218.54,218.49,4.5768685]
[1760028930520,4.06660188,218.52,218.46,0.1]
[1760028930724,4.06660188,218.5,218.47,33.48]
[1760028931204,4.06660188,218.5,218.34,0.1]
[1760028931205,4.06660188,218.48,218.34,0.1]
[1760028931404,4.06660188,218.36,218.34,0.1]
[1760028931611,0.69,218.35,218.34,0.1]
[1760028931814,20.8,218.37,218.34,0.1]
[1760028932120,4.75660188,218.4,218.34,0.1]
[1760028932324,4.75660188,218.4,218.34,33.62]
[1760028932619,4.06660188,218.38,218.34,33.62]
[1760028932936,20.8,218.39,218.34,33.62]
[1760028932937,4.06660188,218.36,218.34,33.62]
[1760028933104,4.75660188,218.36,218.34,0.1]
[1760028933304,0.69,218.35,218.34,0.1]
[1760028935632,5.26980306,218.35,218.34,0.1]
[1760028936008,0.69,218.35,218.34,0.1]
[1760028937629,20.8,218.32,218.24,33.5]
[1760028937805,21.49,218.32,218.24,38.08200243]
[1760028938010,20.8,218.32,218.19,10.87647521]
[1760028938210,20.8,218.32,218.13,0.31]
[1760028938211,11.56647521,218.31,218.13,0.31]
[1760028938523,4.58085203,218.3,218.19,0.31]
[1760028938716,0.69,218.3,218.19,0.31]
[1760028938918,0.69,218.3,218.17,26.08]
[1760028938919,0.69,218.3,218.18,10.87647521]
[1760028939113,4.06660188,218.25,218.18,11.18647521]
[1760028939640,4.06660188,218.25,218.19,0.31]
[1760028939927,0.69,218.29,218.19,0.31]
[1760028940129,4.06660188,218.28,218.19,0.31]
[1760028940527,0.69,218.27,218.19,16.04106512]